fUSD/lending_fUSD_20241123
["ID","MTS","AMOUNT","RATE_DAILY","PERIOD"]
[343067959,1732323040862,-500.0,0.00065753,120]
[343067960,1732323040871,-500.0,0.00065753,120]
[343067961,1732323040880,-500.0,0.00065753,120]
[343067962,1732323040889,-618.53,0.00065753,120]
[343067963,1732323040899,-500.0,0.00065753,120]
[343067964,1732323040908,-500.0,0.00065753,120]
[343067965,1732323040918,-500.0,0.00065753,120]
[343067966,1732323040927,-500.0,0.00065753,120]
[343067967,1732323040936,-500.0,0.00065753,120]
[343067968,1732323040945,-500.0,0.00065753,120]
[343067969,1732323040954,-500.0,0.00065753,120]
[343067970,1732323040964,-500.0,0.00065753,120]
[343067971,1732323040973,-216.0229552,0.00065753,120]
[343067972,1732323040983,-500.0,0.00065753,120]
[343067973,1732323040992,-500.0,0.00065753,120]
[343067974,1732323041002,-500.0,0.00065753,120]
[343067975,1732323041012,-500.0,0.00065753,120]
[343067976,1732323041021,-500.0,0.00065753,120]
[343067977,1732323041031,-310.69347434,0.00065753,120]
[343067978,1732323041040,-500.0,0.00065753,120]
[343067979,1732323041049,-500.0,0.00065753,120]
[343067980,1732323041060,-500.0,0.00065753,120]
[343067981,1732323041072,-500.0,0.00065753,120]
[343067982,1732323041081,-500.0,0.00065753,120]
[343067983,1732323041091,-500.0,0.00065753,120]
[343067984,1732323041101,-500.0,0.00065753,120]
[343067985,1732323041111,-500.0,0.00065753,120]
[343067986,1732323041120,-500.0,0.00065753,120]
[343067987,1732323041129,-500.0,0.00065753,120]
[343067988,1732323041138,-500.0,0.00065753,120]
[343067989,1732323041147,-500.0,0.00065753,120]
[343067990,1732323041157,-500.0,0.00065753,120]
[343067991,1732323041166,-500.0,0.00065753,120]
[343067992,1732323041176,-500.0,0.00065753,120]
[343067993,1732323041185,-500.0,0.00065753,120]
[343067994,1732323041196,-238.67011655,0.00065753,120]
[343067995,1732323041206,-500.0,0.00065753,120]
[343067996,1732323041215,-500.0,0.00065753,120]
[343067997,1732323041225,-245.92907367,0.00065753,120]
[343067998,1732323041236,-500.0,0.00065753,120]
[343067999,1732323041246,-500.0,0.00065753,120]
[343068000,1732323041255,-500.0,0.00065753,120]
[343068001,1732323041266,-500.0,0.00065753,120]
[343068002,1732323041278,-500.0,0.00065753,120]
[343068003,1732323041287,-500.0,0.00065753,120]
[343068004,1732323041297,-376.69747608,0.00065753,120]
[343068005,1732323041306,-500.0,0.00065753,120]
[343068006,1732323041317,-520.967916,0.00065753,30]
[343068007,1732323041404,-500.0,0.00065753,120]
[343068008,1732323041421,-500.0,0.00065753,120]
[343068009,1732323041431,-500.0,0.00065753,120]
[343068010,1732323041441,-500.0,0.00065753,120]
[343068011,1732323041450,-500.0,0.00065753,120]
[343068012,1732323041460,-160.26866408,0.00065753,120]
[343068013,1732323041469,-500.0,0.00065753,120]
[343068014,1732323041478,-911.45,0.00065753,120]
[343068015,1732323041488,-911.45,0.00065753,120]
[343068016,1732323041498,-500.0,0.00065753,120]
[343068017,1732323041508,-911.45,0.00065753,120]
[343068018,1732323041518,-500.0,0.00065753,120]
[343068019,1732323041529,-500.0,0.00065753,120]
[343068020,1732323041539,-500.0,0.00065753,120]
[343068021,1732323041549,-911.45,0.00065753,120]
[343068022,1732323041559,-500.0,0.00065753,120]
[343068023,1732323041573,-200.57,0.00065753,120]
[343068024,1732323041583,-150.0,0.00065753,60]
[343068025,1732323041595,-500.0,0.00065753,120]
[343068026,1732323041605,-500.0,0.00065753,120]
[343068027,1732323041616,-500.0,0.00065753,120]
[343068028,1732323041625,-500.0,0.00065753,120]
[343068029,1732323041636,-500.0,0.00065753,120]
[343068030,1732323041646,-669.67,0.00065753,120]
[343068031,1732323041656,-715.0,0.00065753,120]
[343068032,1732323041666,-500.0,0.00065753,120]
[343068033,1732323041676,-669.67,0.00065753,120]
[343068034,1732323041686,-715.0,0.00065753,120]
[343068035,1732323041695,-500.0,0.00065753,120]
[343068036,1732323041706,-669.67,0.00065753,120]
[343068037,1732323041716,-500.0,0.00065753,120]
[343068038,1732323041728,-500.0,0.00065753,120]
[343068039,1732323041738,-445.64,0.00065753,120]
[343068040,1732323041747,-500.0,0.00065753,120]
[343068041,1732323041757,-500.0,0.00065753,120]
[343068042,1732323041766,-499.68611315,0.00065753,120]
[343068043,1732323041776,-500.0,0.00065753,120]
[343068044,1732323041787,-500.0,0.00065753,120]
[343068045,1732323041797,-500.0,0.00065753,120]
[343068046,1732323041807,-500.0,0.00065753,120]
[343068047,1732323041821,-500.0,0.00065753,120]
[343068048,1732323041831,-500.0,0.00065753,120]
[343068049,1732323041842,-500.0,0.00065753,120]
[343068050,1732323041852,-500.0,0.00065753,120]
[343068051,1732323041862,-500.0,0.00065753,120]
[343068052,1732323041872,-500.0,0.00065753,120]
[343068053,1732323041881,-500.0,0.00065753,120]
[343068054,1732323041891,-500.0,0.00065753,120]
[343068055,1732323041900,-500.0,0.00065753,120]
[343068056,1732323041910,-500.0,0.00065753,120]
[343068057,1732323041919,-500.0,0.00065753,120]
[343068058,1732323041929,-500.0,0.00065753,120]
[343068059,1732323041939,-500.0,0.00065753,120]
[343068060,1732323041948,-500.0,0.00065753,120]
[343068061,1732323041958,-500.0,0.00065753,120]
[343068062,1732323041967,-500.0,0.00065753,120]
[343068063,1732323041977,-500.0,0.00065753,120]
[343068064,1732323041986,-500.0,0.00065753,120]
[343068065,1732323041996,-500.0,0.00065753,120]
[343068066,1732323042005,-500.0,0.00065753,120]
[343068067,1732323042014,-500.0,0.00065753,120]
[343068068,1732323042024,-500.0,0.00065753,120]
[343068069,1732323042033,-500.0,0.00065753,120]
[343068070,1732323042042,-500.0,0.00065753,120]
[343068071,1732323042052,-500.0,0.00065753,120]
[343068072,1732323042061,-500.0,0.00065753,120]
[343068073,1732323042073,-500.0,0.00065753,120]
[343068074,1732323042082,-500.0,0.00065753,120]
[343068075,1732323042091,-500.0,0.00065753,120]
[343068076,1732323042100,-500.0,0.00065753,120]
[343068077,1732323042110,-500.0,0.00065753,120]
[343068078,1732323042120,-500.0,0.00065753,120]
[343068079,1732323042129,-500.0,0.00065753,120]
[343068080,1732323042139,-500.0,0.00065753,120]
[343068081,1732323042148,-304.45,0.00065753,120]
[343068082,1732323042158,-500.0,0.00065753,120]
[343068083,1732323042167,-500.0,0.00065753,120]
[343068084,1732323042177,-500.0,0.00065753,120]
[343068085,1732323042188,-500.0,0.00065753,120]
[343068086,1732323042199,-164.3643465,0.00065753,120]
[343068087,1732323042209,-500.0,0.00065753,120]
[343068088,1732323042218,-500.0,0.00065753,120]
[343068089,1732323042227,-498.32168641,0.00065753,120]
[343068090,1732323042238,-500.0,0.00065753,120]
[343068091,1732323042249,-500.0,0.00065753,120]
[343068092,1732323042259,-753.2,0.00065753,120]
[343068093,1732323042270,-753.2,0.00065753,120]
[343068094,1732323042279,-500.0,0.00065753,120]
[343068095,1732323042289,-500.0,0.00065753,120]
[343068096,1732323042299,-500.0,0.00065753,120]
[343068097,1732323042309,-500.0,0.00065753,120]
[343068098,1732323042323,-500.0,0.00065753,120]
[343068099,1732323042332,-500.0,0.00065753,120]
[343068100,1732323042342,-500.0,0.00065753,120]
[343068101,1732323042352,-500.0,0.00065753,120]
[343068102,1732323042362,-500.0,0.00065753,120]
[343068103,1732323042372,-500.0,0.00065753,120]
[343068104,1732323042381,-500.0,0.00065753,2]
[343068105,1732323042391,-500.0,0.00065753,120]
[343068106,1732323042400,-480.16,0.00065753,120]
[343068107,1732323042409,-500.0,0.00065753,120]
[343068108,1732323042418,-500.0,0.00065753,120]
[343068109,1732323042427,-500.0,0.00065753,120]
[343068110,1732323042437,-500.0,0.00065753,120]
[343068111,1732323042447,-200.0,0.00065753,30]
[343068112,1732323042456,-500.0,0.00065753,2]
[343068113,1732323042465,-500.0,0.00065753,120]
[343068114,1732323042475,-500.0,0.00065753,120]
[343068115,1732323042485,-500.0,0.00065753,2]
[343068116,1732323042495,-500.0,0.00065753,120]
[343068117,1732323042504,-500.0,0.00065753,120]
[343068119,1732323042514,-500.0,0.00065753,120]
[343068121,1732323042524,-501.23431769,0.00065753,2]
[343068124,1732323042534,-500.0,0.00065753,120]
[343068126,1732323042545,-500.0,0.00065753,120]
[343068128,1732323042555,-500.0,0.00065753,120]
[343068130,1732323042567,-500.0,0.00065753,120]
[343068132,1732323042577,-1254.98,0.00065753,120]
[343068134,1732323042586,-516.9,0.00065753,120]
[343068136,1732323042596,-1254.98,0.00065753,120]
[343068138,1732323042605,-500.0,0.00065753,120]
[343068147,1732323042688,-1254.98,0.00065753,120]
[343068149,1732323042698,-500.0,0.00065753,120]
[343068151,1732323042707,-500.0,0.00065753,120]
[343068153,1732323042717,-500.0,0.00065753,120]
[343068155,1732323042726,-500.0,0.00065753,120]
[343068157,1732323042736,-500.0,0.00065753,120]
[343068159,1732323042745,-500.0,0.00065753,120]
[343068161,1732323042756,-500.0,0.00065753,120]
[343068163,1732323042766,-1369.8,0.00065753,120]
[343068165,1732323042776,-500.0,0.00065753,120]
[343068167,1732323042785,-500.0,0.00065753,7]
[343068169,1732323042795,-500.0,0.00065753,120]
[343068171,1732323042804,-1369.8,0.00065753,120]
[343068173,1732323042814,-500.0,0.00065753,7]
[343068175,1732323042825,-1369.8,0.00065753,120]
[343068177,1732323042835,-1369.8,0.00065753,120]
[343068179,1732323042844,-500.0,0.00065753,120]
[343068181,1732323042854,-579.26896148,0.00065753,120]
[343068183,1732323042864,-500.0,0.00065753,120]
[343068186,1732323042873,-500.0,0.00065753,120]
[343068188,1732323042883,-500.0,0.00065753,120]
[343068190,1732323042892,-500.0,0.00065753,120]
[343068192,1732323042902,-2007.3,0.00065753,120]
[343068194,1732323042911,-500.0,0.00065753,120]
[343068197,1732323042920,-2007.3,0.00065753,120]
[343068199,1732323042929,-500.0,0.00065753,120]
[343068201,1732323042938,-2007.3,0.00065753,120]
[343068203,1732323042947,-2007.3,0.00065753,120]
[343068206,1732323042957,-502.92,0.00065753,120]
[343068209,1732323042966,-495.42326107,0.00065753,120]
[343068212,1732323042975,-500.0,0.00065753,120]
[343068214,1732323042983,-500.0,0.00065753,120]
[343068216,1732323042992,-500.0,0.00065753,120]
[343068218,1732323043001,-500.0,0.00065753,120]
[343068220,1732323043009,-500.0,0.00065753,120]
[343068222,1732323043017,-397.66355563,0.00065753,120]
[343068224,1732323043026,-671.92,0.00065753,120]
[343068226,1732323043037,-671.92,0.00065753,120]
[343068228,1732323043046,-500.0,0.00065753,120]
[343068230,1732323043055,-500.0,0.00065753,120]
[343068231,1732323043068,-500.0,0.00065753,120]
[343068234,1732323043078,-500.0,0.00065753,120]
[343068235,1732323043088,-500.0,0.00065753,120]
[343068237,1732323043098,-500.0,0.00065753,120]
[343068239,1732323043108,-500.0,0.00065753,120]
[343068242,1732323043118,-500.0,0.00065753,120]
[343068244,1732323043128,-500.0,0.00065753,120]
[343068245,1732323043137,-500.0,0.00065753,120]
[343068247,1732323043147,-500.0,0.00065753,120]
[343068249,1732323043158,-500.0,0.00065753,120]
[343068251,1732323043167,-500.0,0.00065753,120]
[343068253,1732323043176,-500.0,0.00065753,120]
[343068255,1732323043187,-500.0,0.00065753,120]
[343068257,1732323043198,-500.0,0.00065753,120]
[343068259,1732323043208,-619.63707192,0.00065753,120]
[343068260,1732323043221,-500.0,0.00065753,120]
[343068261,1732323043242,-500.0,0.00065753,120]
[343068262,1732323043262,-500.0,0.00065753,120]
[343068263,1732323043282,-1427.96,0.00065753,120]
[343068264,1732323043299,-500.0,0.00065753,120]
[343068266,1732323043317,-514.00402539,0.00065753,120]
[343068268,1732323043339,-500.0,0.00065753,120]
[343068271,1732323043359,-1427.96,0.00065753,120]
[343068275,1732323043382,-500.0,0.00065753,120]
[343068278,1732323043402,-500.0,0.00065753,120]
[343068281,1732323043422,-1427.96,0.00065753,120]
[343068283,1732323043437,-500.0,0.00065753,120]
[343068286,1732323043459,-1427.96,0.00065753,120]
[343068289,1732323043476,-500.0,0.00065753,120]
[343068292,1732323043492,-500.0,0.00065753,120]
[343068294,1732323043507,-500.0,0.00065753,120]
[343068296,1732323043523,-500.0,0.00065753,120]
[343068297,1732323043539,-500.0,0.00065753,120]
[343068298,1732323043556,-500.0,0.00065753,120]
[343068299,1732323043577,-500.0,0.00065753,120]
[343068300,1732323043593,-500.0,0.00065753,120]
[343068301,1732323043608,-554.71551503,0.00065753,120]
[343068302,1732323043623,-500.0,0.00065753,120]
[343068303,1732323043638,-500.0,0.00065753,120]
[343068304,1732323043654,-555.32615702,0.00065753,120]
[343068305,1732323043668,-500.0,0.00065753,120]
[343068306,1732323043684,-500.0,0.00065753,120]
[343068307,1732323043699,-500.0,0.00065753,120]
[343068308,1732323043715,-500.0,0.00065753,120]
[343068309,1732323043731,-500.0,0.00065753,120]
[343068310,1732323043747,-502.10684856,0.00065753,120]
[343068312,1732323043762,-500.0,0.00065753,120]
[343068313,1732323043778,-500.0,0.00065753,120]
[343068314,1732323043794,-500.0,0.00065753,120]
[343068315,1732323043810,-200.61081292,0.00065753,120]
[343068318,1732323043828,-300.0,0.00065758,60]
[343068320,1732323043843,-150.0,0.00065758,60]
[343068321,1732323043859,-150.0,0.0006576,60]
[343068322,1732323043874,-150.0,0.0006576,60]
[343068323,1732323043890,-150.0,0.00065761,60]
[343068324,1732323043906,-150.0,0.00065761,60]
[343068325,1732323043921,-150.0,0.00065765,60]
[343068326,1732323043936,-150.0,0.00065766,60]
[343068327,1732323043955,-150.0,0.00065767,60]
[343068328,1732323043965,-150.0,0.00065768,60]
[343068329,1732323043975,-150.0,0.00065769,60]
[343068330,1732323043985,-150.0,0.00065769,60]
[343068331,1732323043995,-150.0,0.00065772,60]
[343068332,1732323044004,-150.0,0.00065774,60]
[343068333,1732323044013,-556.22304917,0.00065776,49]
[343068334,1732323044023,-150.0,0.00065776,60]
[343068335,1732323044032,-1500.0,0.00065778,60]
[343068336,1732323044042,-150.0,0.00065779,60]
[343068337,1732323044051,-150.0,0.00065786,60]
[343068338,1732323044060,-1500.0,0.00065786,60]
[343068339,1732323044072,-150.0,0.00065788,60]
[343068340,1732323044260,-150.0,0.0006579,60]
[343068341,1732323044278,-150.0,0.00065792,60]
[343068342,1732323044287,-150.0,0.00065793,60]
[343068343,1732323044297,-150.0,0.00065793,60]
[343068344,1732323044307,-1500.0,0.00065794,60]
[343068345,1732323044318,-150.0,0.00065796,60]
[343068346,1732323044328,-150.0,0.00065799,60]
[343068347,1732323044337,-900.0,0.000658,24]
[343068348,1732323044346,-154.0,0.00065801,25]
[343068349,1732323044355,-500.0,0.00065801,120]
[343068350,1732323044364,-500.0,0.00065801,120]
[343068351,1732323044373,-500.0,0.00065801,120]
[343068352,1732323044382,-500.0,0.00065801,120]
[343068353,1732323044391,-500.0,0.00065801,120]
[343068354,1732323044401,-500.0,0.00065801,120]
[343068355,1732323044408,-500.0,0.00065801,120]
[343068356,1732323044416,-500.0,0.00065801,120]
[343068357,1732323044424,-500.0,0.00065801,120]
[343068358,1732323044431,-500.0,0.00065801,120]
[343068359,1732323044439,-500.0,0.00065801,120]
[343068360,1732323044448,-500.0,0.00065801,120]
[343068361,1732323044456,-500.0,0.00065801,120]
[343068362,1732323044463,-352.17296597,0.00065801,120]
[343068363,1732323044473,-500.0,0.00065801,120]
[343068364,1732323044482,-500.0,0.00065801,120]
[343068365,1732323044492,-433.23638927,0.00065801,120]
[343068366,1732323044502,-500.0,0.00065801,120]
[343068367,1732323044511,-500.0,0.00065801,120]
[343068368,1732323044521,-500.0,0.00065801,120]
[343068369,1732323044530,-500.0,0.00065801,120]
[343068370,1732323044539,-299.77716584,0.00065801,120]
[343068371,1732323044549,-500.0,0.00065801,120]
[343068372,1732323044559,-150.0,0.00065802,60]
[343068373,1732323044569,-150.0,0.00065802,60]
[343068374,1732323044579,-150.0,0.00065804,60]
[343068375,1732323044588,-150.0,0.00065805,60]
[343068376,1732323044598,-150.0,0.00065805,60]
[343068377,1732323044608,-150.0,0.00065814,60]
[343068378,1732323044618,-1500.0,0.00065814,60]
[343068379,1732323044628,-150.0,0.00065815,60]
[343068380,1732323044638,-150.0,0.00065817,60]
[343068381,1732323044648,-150.0,0.00065817,60]
[343068382,1732323044657,-150.0,0.00065817,60]
[343068383,1732323044667,-150.0,0.00065817,60]
[343068384,1732323044676,-150.0,0.00065822,60]
[343068385,1732323044686,-150.0,0.00065828,60]
[343068386,1732323044696,-150.0,0.00065828,60]
[343068387,1732323044705,-150.0,0.00065828,60]
[343068388,1732323044715,-1500.0,0.00065828,60]
[343068389,1732323044725,-150.0,0.00065828,60]
[343068390,1732323044735,-150.0,0.00065832,60]
[343068391,1732323044746,-150.0,0.00065833,60]
[343068392,1732323044755,-150.0,0.00065834,60]
[343068393,1732323044765,-150.0,0.00065835,60]
[343068394,1732323044775,-150.0,0.0006584,60]
[343068395,1732323044784,-150.0,0.00065845,60]
[343068396,1732323044794,-150.0,0.00065854,60]
[343068397,1732323044803,-150.0,0.00065858,60]
[343068398,1732323044813,-1500.0,0.00065861,60]
[343068399,1732323044825,-150.0,0.00065862,60]
[343068400,1732323044835,-150.0,0.00065863,60]
[343068401,1732323044845,-150.0,0.00065866,60]
[343068402,1732323044854,-150.0,0.00065868,60]
[343068403,1732323044864,-150.0,0.00065873,60]
[343068404,1732323044873,-150.0,0.00065873,60]
[343068405,1732323044883,-150.0,0.00065882,60]
[343068406,1732323044892,-150.0,0.00065882,60]
[343068407,1732323044901,-150.0,0.00065882,60]
[343068408,1732323044911,-150.0,0.00065883,60]
[343068409,1732323044920,-150.0,0.00065883,60]
[343068410,1732323044929,-150.0,0.00065885,60]
[343068411,1732323044939,-150.0,0.00065885,60]
[343068412,1732323044948,-150.0,0.00065886,60]
[343068413,1732323044957,-1500.0,0.00065889,60]
[343068414,1732323044967,-150.0,0.00065891,60]
[343068415,1732323044976,-300.0,0.00065892,60]
[343068416,1732323044985,-300.0,0.00065894,60]
[343068417,1732323044995,-150.0,0.00065894,60]
[343068418,1732323045005,-150.0,0.00065894,60]
[343068419,1732323045014,-150.0,0.00065894,60]
[343068420,1732323045023,-150.0,0.00065896,60]
[343068421,1732323045033,-150.0,0.00065896,60]
[343068422,1732323045042,-556.22304917,0.00065898,49]
[343068423,1732323045052,-487.19437073,0.00065899,46]
[343068424,1732323045061,-166.82955001,0.00065899,46]
[343068425,1732323045074,-487.19437069,0.00065899,46]
[343068426,1732323045086,-487.19437069,0.000659,46]
[343068427,1732323045095,-487.19437069,0.000659,46]
[343068428,1732323045104,-487.19437069,0.000659,46]
[343068429,1732323045114,-742.43045424,0.000659,14]
[343068430,1732323045123,-900.0,0.000659,24]
[343068431,1732323045132,-150.0,0.000659,60]
[343068432,1732323045141,-150.0,0.000659,60]
[343068433,1732323045150,-155.51896767,0.000659,120]
[343068434,1732323045159,-208.01707056,0.000659,2]
[343068435,1732323045168,-1568.84204759,0.000659,2]
[343068436,1732323045178,-166.82955001,0.000659,46]
[343068437,1732323045188,-150.0,0.00065901,60]
[343068438,1732323045201,-150.0,0.00065901,60]
[343068439,1732323045210,-150.0,0.00065903,60]
[343068440,1732323045219,-150.0,0.00065903,60]
[343068441,1732323045228,-150.0,0.00065904,60]
[343068442,1732323045239,-150.0,0.00065906,60]
[343068443,1732323045248,-150.0,0.00065907,60]
[343068444,1732323045258,-150.0,0.00065907,60]
[343068445,1732323045268,-150.0,0.00065911,60]
[343068446,1732323045278,-150.0,0.00065913,60]
[343068447,1732323045288,-150.0,0.00065913,60]
[343068448,1732323045298,-150.0,0.00065913,60]
[343068449,1732323045308,-1500.0,0.00065918,60]
[343068450,1732323045318,-150.0,0.00065922,60]
[343068451,1732323045327,-150.0,0.00065926,60]
[343068452,1732323045342,-150.0,0.00065927,60]
[343068453,1732323045351,-150.0,0.00065928,60]
[343068454,1732323045361,-150.0,0.00065931,60]
[343068455,1732323045370,-300.0,0.00065937,60]
[343068456,1732323045379,-150.0,0.00065939,60]
[343068457,1732323045389,-150.0,0.0006594,60]
[343068458,1732323045399,-150.0,0.00065942,60]
[343068459,1732323045409,-150.0,0.00065944,60]
[343068460,1732323045419,-150.0,0.00065946,60]
[343068461,1732323045429,-150.0,0.00065946,60]
[343068462,1732323045438,-150.0,0.00065948,60]
[343068463,1732323045448,-1500.0,0.00065949,60]
[343068464,1732323045458,-150.0,0.00065952,60]
[343068465,1732323045467,-150.0,0.00065952,60]
[343068466,1732323045476,-1944.3954526,0.00065955,4]
[343068467,1732323045486,-1810.2415097,0.00065955,4]
[343068468,1732323045495,-150.0,0.00065956,60]
[343068469,1732323045504,-1500.0,0.00065956,60]
[343068470,1732323045514,-150.0,0.00065958,60]
[343068471,1732323045523,-150.0,0.00065959,60]
[343068472,1732323045532,-1500.0,0.00065962,60]
[343068473,1732323045542,-150.0,0.00065962,60]
[343068474,1732323045551,-150.0,0.00065964,60]
[343068475,1732323045560,-150.0,0.00065969,60]
[343068476,1732323045572,-150.0,0.00065969,60]
[343068477,1732323045582,-188.08,0.0006597,120]
[343068478,1732323045592,-285.67,0.0006597,120]
[343068479,1732323045602,-150.5,0.0006597,120]
[343068480,1732323045612,-150.5,0.0006597,30]
[343068481,1732323045623,-150.0,0.0006597,60]
[343068482,1732323045633,-150.0,0.00065971,60]
[343068483,1732323045644,-2959.0,0.00065973,120]
[343068484,1732323045654,-168.16163064,0.00065974,60]
[343068485,1732323045664,-1789.0,0.00065978,74]
[343068486,1732323045673,-150.5,0.0006598,120]
[343068487,1732323045683,-150.5,0.0006598,120]
[343068488,1732323045692,-150.5,0.0006598,120]
[343068489,1732323045702,-152.28,0.0006598,120]
[343068490,1732323045711,-277.9,0.0006598,120]
[343068493,1732323045721,-150.5,0.0006598,30]
[343068495,1732323045730,-150.0,0.0006598,60]
[343068497,1732323045740,-150.0,0.00065981,60]
[343068499,1732323045750,-150.0,0.00065982,60]
[343068501,1732323045760,-150.0,0.00065985,60]
[343068503,1732323045770,-150.0,0.00065986,60]
[343068505,1732323045779,-150.0,0.00065987,60]
[343068508,1732323045790,-150.0,0.00065987,60]
[343068510,1732323045799,-150.0,0.00065989,60]
[343068512,1732323045808,-150.5,0.0006599,120]
[343068514,1732323045819,-150.5,0.0006599,120]
[343068516,1732323045829,-150.5,0.0006599,120]
[343068517,1732323045839,-150.5,0.0006599,120]
[343068519,1732323045848,-300.21,0.0006599,120]
[343068520,1732323045857,-150.5,0.0006599,120]
[343068521,1732323045867,-150.5,0.0006599,30]
[343068522,1732323045876,-166.08,0.0006599,30]
[343068523,1732323045886,-150.0,0.00065991,60]
[343068524,1732323045895,-150.0,0.00065992,60]
[343068525,1732323045904,-150.0,0.00065994,60]
[343068526,1732323045914,-150.0,0.00065994,60]
[343068527,1732323045923,-150.0,0.00065994,60]
[343068528,1732323045932,-499.999999,0.00065997,120]
[343068530,1732323045941,-1536.78,0.00065997,120]
[343068531,1732323045950,-500.0,0.00065997,120]
[343068532,1732323045960,-1330.49,0.00065997,120]
[343068533,1732323045969,-500.0,0.00065997,120]
[343068534,1732323045978,-500.0,0.00065997,120]
[343068535,1732323045987,-500.0,0.00065997,120]
[343068536,1732323045996,-500.0,0.00065997,120]
[343068537,1732323046006,-206.2617783,0.00065997,120]
[343068538,1732323046015,-500.0,0.00065997,120]
[343068539,1732323046024,-500.0,0.00065997,120]
[343068540,1732323046034,-500.0,0.00065997,120]
[343068541,1732323046043,-172.7,0.00065997,120]
[343068542,1732323046053,-456.53,0.00065997,120]
[343068543,1732323046062,-500.0,0.00065997,120]
[343068544,1732323046073,-500.0,0.00065997,120]
[343068545,1732323046082,-500.0,0.00065997,120]
[343068546,1732323046092,-500.0,0.00065997,120]
[343068547,1732323046101,-500.0,0.00065997,120]
[343068548,1732323046111,-1209.31,0.00065997,120]
[343068549,1732323046123,-1000.0,0.00065997,120]
[343068550,1732323046136,-1284.25,0.00065997,120]
[343068551,1732323046150,-1030.29,0.00065997,120]
[343068552,1732323046159,-500.0,0.00065997,120]
[343068553,1732323046168,-567.77786558,0.00065997,120]
[343068554,1732323046177,-162.86,0.00065997,120]
[343068555,1732323046191,-500.0,0.00065997,120]
[343068556,1732323046203,-500.0,0.00065997,7]
[343068557,1732323046218,-589.06,0.00065997,120]
[343068558,1732323046227,-500.0,0.00065997,120]
[343068559,1732323046238,-500.0,0.00065997,120]
[343068560,1732323046247,-500.0,0.00065997,120]
[343068561,1732323046256,-500.0,0.00065997,120]
[343068562,1732323046266,-500.0,0.00065997,120]
[343068563,1732323046276,-500.0,0.00065997,120]
[343068564,1732323046285,-500.0,0.00065997,120]
[343068565,1732323046294,-500.0,0.00065997,120]
[343068566,1732323046303,-500.0,0.00065997,120]
[343068567,1732323046312,-500.0,0.00065997,120]
[343068568,1732323046324,-500.0,0.00065997,120]
[343068569,1732323046335,-500.0,0.00065997,120]
[343068570,1732323046344,-500.0,0.00065997,120]
[343068571,1732323046355,-500.0,0.00065997,120]
[343068572,1732323046366,-500.0,0.00065997,120]
[343068573,1732323046377,-500.0,0.00065997,120]
[343068574,1732323046388,-173.60008278,0.00065997,120]
[343068575,1732323046398,-425.28982721,0.00065997,120]